[Event "Titled Tuesday Blitz August 09 Early 2022"]
[White "Yedidia, Daniel"]
[Black "Bilych, Olexiy"]
[WhiteFideId "30905907"]
[BlackFideId "14156504"]
[WhiteElo "2547"]
[BlackElo "2157"]
[Result "0-1"]
[Round "11"]
[TimeControl "180+1"]
[Date "2022.08.09"]
[WhiteClock "0:01:23"]
[BlackClock "0:01:34"]

1. d4 {[%clk 0:03:00]}  Nf6 {[%clk 0:02:59]} 2. c4 {[%clk 0:03:00]}  e6 {[%clk 0:02:59]} 3. Nc3 {[%clk 0:03:01]}  Bb4 {[%clk 0:02:59]} 4. e3 {[%clk 0:03:01]}  O-O {[%clk 0:02:59]} 5. Bd3 {[%clk 0:03:02]}  d5 {[%clk 0:02:59]} 6. Nf3 {[%clk 0:03:02]}  c5 {[%clk 0:03:00]} 7. O-O {[%clk 0:03:02]}  dxc4 {[%clk 0:03:00]} 8. Bxc4 {[%clk 0:03:02]}  cxd4 {[%clk 0:03:01]} 9. exd4 {[%clk 0:03:02]}  b6 {[%clk 0:03:02]} 10. Bg5 {[%clk 0:03:01]}  Bb7 {[%clk 0:03:01]} 11. Rc1 {[%clk 0:03:01]}  Nbd7 {[%clk 0:03:01]} 12. Qd3 {[%clk 0:02:52]}  h6 {[%clk 0:02:59]} 13. Bh4 {[%clk 0:02:52]}  Rc8 {[%clk 0:02:52]} 14. Ba6 {[%clk 0:02:48]}  Bxa6 {[%clk 0:02:50]} 15. Qxa6 {[%clk 0:02:48]}  Bxc3 {[%clk 0:02:50]} 16. bxc3 {[%clk 0:02:46]}  Qc7 {[%clk 0:02:41]} 17. Bg3 {[%clk 0:02:43]}  Qc4 {[%clk 0:02:36]} 18. Qa3 {[%clk 0:02:28]}  Nd5 {[%clk 0:02:30]} 19. Nd2 {[%clk 0:02:22]}  Qd3 {[%clk 0:02:24]} 20. Nb1 {[%clk 0:02:20]}  a5 {[%clk 0:01:58]} 21. Rfd1 {[%clk 0:02:20]}  Qa6 {[%clk 0:01:56]} 22. Nd2 {[%clk 0:02:12]}  b5 {[%clk 0:01:54]} 23. h3 {[%clk 0:02:02]}  Nxc3 {[%clk 0:01:45]} 24. Re1 {[%clk 0:01:58]}  b4 {[%clk 0:01:45]} 25. Qa4 {[%clk 0:01:54]}  Ne2+ {[%clk 0:01:44]} 26. Kh2 {[%clk 0:01:52]}  Nb6 {[%clk 0:01:37]} 27. Qd1 {[%clk 0:01:26]}  Rxc1 {[%clk 0:01:35]} 28. Qxe2 {[%clk 0:01:25]}  Qxe2 {[%clk 0:01:34]} 29. Rxe2 {[%clk 0:01:26]}  Rc2 {[%clk 0:01:35]} 30. Bf4 {[%clk 0:01:24]}  Rxa2 {[%clk 0:01:34]} 31. Re5 {[%clk 0:01:23]}  Nd5 {[%clk 0:01:34]} 0-1


[Site "https://www.chess.com"]

[Event "Titled Tuesday Blitz August 09 Early 2022"]
[White "Zemlyanskii, Ivan"]
[Black "Janaszak, Dawid"]
[WhiteFideId "24249971"]
[BlackFideId "1119206"]
[WhiteElo "1879"]
[BlackElo "2165"]
[Result "1-0"]
[Round "11"]
[TimeControl "180+1"]
[Date "2022.08.09"]
[WhiteClock "0:00:52"]
[BlackClock "0:00:04"]

1. d4 {[%clk 0:03:00]}  d5 {[%clk 0:02:58]} 2. c4 {[%clk 0:03:00]}  dxc4 {[%clk 0:02:59]} 3. e3 {[%clk 0:03:00]}  e5 {[%clk 0:02:57]} 4. Bxc4 {[%clk 0:02:59]}  exd4 {[%clk 0:02:57]} 5. exd4 {[%clk 0:03:00]}  Nf6 {[%clk 0:02:56]} 6. Nf3 {[%clk 0:03:00]}  Bd6 {[%clk 0:02:56]} 7. O-O {[%clk 0:02:59]}  O-O {[%clk 0:02:56]} 8. Nc3 {[%clk 0:02:59]}  Bg4 {[%clk 0:02:54]} 9. h3 {[%clk 0:02:59]}  Bh5 {[%clk 0:02:53]} 10. g4 {[%clk 0:02:58]}  Bg6 {[%clk 0:02:53]} 11. Ne5 {[%clk 0:02:57]}  c5 {[%clk 0:02:22]} 12. Nxg6 {[%clk 0:02:24]}  hxg6 {[%clk 0:02:21]} 13. dxc5 {[%clk 0:02:25]}  Bxc5 {[%clk 0:02:18]} 14. Bxf7+ {[%clk 0:02:24]}  Kxf7 {[%clk 0:01:51]} 15. Qb3+ {[%clk 0:02:21]}  Ke8 {[%clk 0:01:50]} 16. Re1+ {[%clk 0:02:21]}  Be7 {[%clk 0:01:48]} 17. Qxb7 {[%clk 0:02:20]}  Nbd7 {[%clk 0:01:48]} 18. Bf4 {[%clk 0:01:57]}  Rf7 {[%clk 0:01:32]} 19. Nb5 {[%clk 0:01:53]}  Kf8 {[%clk 0:00:51]} 20. Nc7 {[%clk 0:01:51]}  Nc5 {[%clk 0:00:30]} 21. Qxa8 {[%clk 0:01:30]}  Qxa8 {[%clk 0:00:30]} 22. Nxa8 {[%clk 0:01:29]}  Nd3 {[%clk 0:00:26]} 23. Bg3 {[%clk 0:01:27]}  Nxe1 {[%clk 0:00:26]} 24. Rxe1 {[%clk 0:01:28]}  Nd5 {[%clk 0:00:26]} 25. Re5 {[%clk 0:01:23]}  Nb4 {[%clk 0:00:23]} 26. Nc7 {[%clk 0:01:12]}  Kg8 {[%clk 0:00:13]} 27. Ne6 {[%clk 0:01:03]}  Nxa2 {[%clk 0:00:10]} 28. Ra5 {[%clk 0:01:02]}  Nc1 {[%clk 0:00:10]} 29. Rxa7 {[%clk 0:00:56]}  Ne2+ {[%clk 0:00:10]} 30. Kg2 {[%clk 0:00:56]}  Nxg3 {[%clk 0:00:09]} 31. fxg3 {[%clk 0:00:56]}  Bd6 {[%clk 0:00:04]} 32. Ra8+ {[%clk 0:00:53]}  Kh7 {[%clk 0:00:04]} 33. Ng5+ {[%clk 0:00:52]} 1-0


[Site "https://www.chess.com"]

[Event "Titled Tuesday Blitz August 09 Early 2022"]
[White "Zhigalko, Sergei"]
[Black "Bharath Subramaniyam H"]
[WhiteFideId "13502956"]
[BlackFideId "46634827"]
[WhiteElo "2662"]
[BlackElo "2346"]
[Result "0-1"]
[Round "11"]
[TimeControl "180+1"]
[Date "2022.08.09"]
[WhiteClock "0:00:01"]
[BlackClock "0:00:45"]

1. e4 {[%clk 0:03:00]}  c5 {[%clk 0:02:55]} 2. Nf3 {[%clk 0:03:00]}  e6 {[%clk 0:02:55]} 3. c3 {[%clk 0:03:01]}  Nf6 {[%clk 0:02:54]} 4. e5 {[%clk 0:03:01]}  Nd5 {[%clk 0:02:55]} 5. Bc4 {[%clk 0:03:02]}  d6 {[%clk 0:02:54]} 6. d4 {[%clk 0:03:02]}  cxd4 {[%clk 0:02:53]} 7. cxd4 {[%clk 0:03:03]}  Nc6 {[%clk 0:02:54]} 8. O-O {[%clk 0:03:03]}  Be7 {[%clk 0:02:53]} 9. Bd2 {[%clk 0:03:03]}  O-O {[%clk 0:02:52]} 10. Nc3 {[%clk 0:03:04]}  Nb6 {[%clk 0:02:47]} 11. Bb3 {[%clk 0:03:02]}  dxe5 {[%clk 0:02:41]} 12. dxe5 {[%clk 0:03:03]}  Nb4 {[%clk 0:02:41]} 13. Ne4 {[%clk 0:02:42]}  Bd7 {[%clk 0:02:33]} 14. Nf6+ {[%clk 0:02:12]}  gxf6 {[%clk 0:02:30]} 15. exf6 {[%clk 0:02:12]}  Bxf6 {[%clk 0:02:11]} 16. Bxb4 {[%clk 0:02:11]}  Re8 {[%clk 0:02:11]} 17. Qd6 {[%clk 0:01:48]}  Bc6 {[%clk 0:02:02]} 18. Qg3+ {[%clk 0:01:48]}  Kh8 {[%clk 0:01:57]} 19. Ne5 {[%clk 0:01:49]}  Bxe5 {[%clk 0:01:58]} 20. Qxe5+ {[%clk 0:01:49]}  f6 {[%clk 0:01:59]} 21. Qh5 {[%clk 0:01:42]}  Rg8 {[%clk 0:01:54]} 22. g3 {[%clk 0:01:39]}  Nd5 {[%clk 0:01:46]} 23. Bd2 {[%clk 0:01:12]}  Qd7 {[%clk 0:01:43]} 24. Rfe1 {[%clk 0:01:09]}  Rae8 {[%clk 0:01:43]} 25. Rad1 {[%clk 0:01:08]}  Qg7 {[%clk 0:01:33]} 26. Bc2 {[%clk 0:01:08]}  Re7 {[%clk 0:01:21]} 27. Re4 {[%clk 0:00:56]}  Be8 {[%clk 0:01:13]} 28. Qh4 {[%clk 0:00:46]}  Bg6 {[%clk 0:01:06]} 29. Bh6 {[%clk 0:00:38]}  Qf7 {[%clk 0:01:04]} 30. Re2 {[%clk 0:00:34]}  Bh5 {[%clk 0:01:03]} 31. Rde1 {[%clk 0:00:11]}  Bxe2 {[%clk 0:01:03]} 32. Rxe2 {[%clk 0:00:12]}  Rc7 {[%clk 0:01:00]} 33. Be4 {[%clk 0:00:12]}  Ne7 {[%clk 0:01:00]} 34. Qf4 {[%clk 0:00:06]}  Ng6 {[%clk 0:01:00]} 35. Qd6 {[%clk 0:00:04]}  Rd7 {[%clk 0:00:59]} 36. Qb4 {[%clk 0:00:04]}  Rd1+ {[%clk 0:00:57]} 37. Kg2 {[%clk 0:00:04]}  Nh4+ {[%clk 0:00:57]} 38. Kh3 {[%clk 0:00:04]}  Qh5 {[%clk 0:00:55]} 39. f3 {[%clk 0:00:01]}  Nf5+ {[%clk 0:00:45]} 40. Kg2 {[%clk 0:00:02]}  Rxg3+ {[%clk 0:00:45]} 41. Kf2 {[%clk 0:00:01]}  Qxh2# {[%clk 0:00:45]} 0-1


[Site "https://www.chess.com"]